fUST/lending_fUST_20250529
["ID","MTS","AMOUNT","RATE_DAILY","PERIOD"]
[362812941,1748467833397,-430.0,0.00019795,2]
[362812942,1748467833406,-430.0,0.00019795,2]
[362812943,1748467833416,-921.12,0.00019795,2]
[362812944,1748467833425,-430.0,0.00019795,2]
[362812945,1748467833435,-450.94,0.00019795,2]
[362812946,1748467833444,-557.59,0.00019795,2]
[362812947,1748467833454,-713.34,0.00019795,2]
[362812948,1748467833464,-430.0,0.00019797,2]
[362812949,1748467833473,-430.0,0.00019797,2]
[362812950,1748467833483,-1013.68,0.00019797,2]
[362812951,1748467833492,-430.0,0.000198,2]
[362812952,1748467833502,-430.0,0.000198,2]
[362812953,1748467833511,-430.0,0.000198,2]
[362812954,1748467833521,-430.0,0.000198,2]
[362812955,1748467833531,-430.0,0.000198,2]
[362812956,1748467833540,-831.06,0.000198,2]
[362812957,1748467833549,-430.0,0.000198,2]
[362812958,1748467833559,-430.0,0.000198,2]
[362812959,1748467833568,-430.0,0.000198,2]
[362812960,1748467833579,-430.0,0.00019802,2]
[362812961,1748467833589,-430.0,0.00019802,2]
[362812962,1748467833599,-185.6130573,0.00019894,2]
[362812963,1748467833614,-500.0,0.0001995,2]
[362812964,1748467833623,-621.01816873,0.00019976,2]
[362812965,1748467833633,-10463.91201839,0.00019998,2]
[362812966,1748467833643,-157.96,0.0002,2]
[362812967,1748467833655,-500.0,0.00020027,2]
[362812968,1748467833664,-500.0,0.00020027,2]
[362812969,1748467833674,-500.0,0.00020031,2]
[362812970,1748467833684,-5000.0,0.00020066,2]
[362812971,1748467833694,-430.0,0.00020069,2]
[362812972,1748467833704,-430.0,0.00020069,2]
[362812973,1748467833714,-921.12,0.00020069,2]
[362812974,1748467833724,-430.0,0.00020069,2]
[362812975,1748467833734,-450.94,0.00020069,2]
[362812976,1748467833744,-557.59,0.00020069,2]
[362812977,1748467833753,-713.34,0.00020069,2]
[362812978,1748467833763,-430.0,0.00020071,2]
[362812979,1748467833772,-430.0,0.00020071,2]
[362812980,1748467833782,-1013.68,0.00020071,2]
[362812981,1748467833792,-430.0,0.00020074,2]
[362812982,1748467833802,-430.0,0.00020074,2]
[362812983,1748467833812,-430.0,0.00020074,2]
[362812984,1748467833821,-430.0,0.00020074,2]
[362812985,1748467833831,-430.0,0.00020074,2]
[362812986,1748467833840,-831.06,0.00020074,2]
[362812987,1748467833851,-351.2,0.00020074,2]
[362812988,1748467833860,-430.0,0.00020074,2]
[362812989,1748467833870,-430.0,0.00020074,2]
[362812990,1748467833879,-430.0,0.00020076,2]
[362812991,1748467833888,-457.08370594,0.00020076,2]
[362812992,1748467833897,-420.0,0.00020093,2]
[362812993,1748467833906,-500.0,0.0002012,2]
[362812994,1748467833915,-500.0,0.00020217,2]
[362812995,1748467833924,-800.0,0.00020273,2]
[362812996,1748467833933,-430.0,0.00020343,2]
[362812997,1748467833942,-430.0,0.00020343,2]
[362812998,1748467833951,-921.12,0.00020343,2]
[362812999,1748467833959,-430.0,0.00020343,2]
[362813000,1748467833969,-450.94,0.00020343,2]
[362813001,1748467833978,-557.59,0.00020343,2]
[362813002,1748467833986,-713.34,0.00020343,2]
[362813003,1748467833994,-430.0,0.00020345,2]
[362813004,1748467834002,-430.0,0.00020345,2]
[362813005,1748467834010,-1013.68,0.00020345,2]
[362813006,1748467834019,-430.0,0.00020348,2]
[362813007,1748467834028,-430.0,0.00020348,2]
[362813008,1748467834037,-430.0,0.00020348,2]
[362813009,1748467834046,-430.0,0.00020348,2]
[362813010,1748467834056,-430.0,0.00020348,2]
[362813011,1748467834065,-831.06,0.00020348,2]
[362813012,1748467834074,-430.0,0.00020348,2]
[362813013,1748467834084,-278.95527654,0.00020348,2]
[362813014,1748467834093,-430.0,0.0002035,2]
[362813015,1748467834103,-621.01816871,0.00020457,2]
[362813016,1748467834113,-1005.30963114,0.00020498,2]
[362813017,1748467834123,-1000.0,0.00020575,2]
[362813018,1748467834133,-1000.0,0.00020579,2]
[362813019,1748467834143,-7123.06174023,0.0002061,2]
[362813020,1748467834152,-5000.0,0.00020614,2]
[362813021,1748467834162,-430.0,0.00020617,2]
[362813022,1748467834171,-430.0,0.00020617,2]
[362813023,1748467834181,-921.12,0.00020617,2]
[362813024,1748467834192,-430.0,0.00020617,2]
[362813025,1748467834202,-450.94,0.00020617,2]
[362813026,1748467834211,-557.59,0.00020617,2]
[362813027,1748467834221,-713.34,0.00020617,2]
[362813028,1748467834230,-430.0,0.00020619,2]
[362813029,1748467834240,-430.0,0.00020619,2]
[362813030,1748467834250,-1013.68,0.00020619,2]
[362813031,1748467834259,-430.0,0.00020622,2]
[362813032,1748467834269,-430.0,0.00020622,2]
[362813033,1748467834278,-234.17487572,0.00020622,2]
[362813034,1748467834288,-430.0,0.00020622,2]
[362813035,1748467834298,-430.0,0.00020622,2]
[362813036,1748467834307,-831.06,0.00020622,2]
[362813037,1748467834316,-430.0,0.00020622,2]
[362813038,1748467834326,-430.0,0.00020624,2]
[362813039,1748467834336,-364.0317976,0.00020658,2]
[362813040,1748467834346,-728.0635952,0.00020658,2]
[362813041,1748467834356,-177.77189404,0.00020668,2]
[362813042,1748467834366,-155.49780129,0.00020685,2]
[362813043,1748467834376,-185.6130573,0.00020709,2]
[362813044,1748467834386,-297.29849381,0.00020765,2]
[362813045,1748467834396,-503.906,0.00020837,2]
[362813046,1748467834405,-172.918,0.00020837,2]
[362813047,1748467834415,-215.0738,0.0002088,2]
[362813048,1748467834425,-430.0,0.00020891,2]
[362813049,1748467834434,-430.0,0.00020891,2]
[362813050,1748467834443,-921.12,0.00020891,2]
[362813051,1748467834453,-430.0,0.00020891,2]
[362813052,1748467834463,-450.94,0.00020891,2]
[362813053,1748467834472,-557.59,0.00020891,2]
[362813054,1748467834481,-713.34,0.00020891,2]
[362813055,1748467834491,-430.0,0.00020893,2]
[362813056,1748467834500,-212.8080897,0.00020893,2]
[362813057,1748467834509,-1013.68,0.00020893,2]
[362813058,1748467834519,-577.71611933,0.00020896,2]
[362813059,1748467834528,-430.0,0.00020896,2]
[362813060,1748467834537,-430.0,0.00020896,2]
[362813061,1748467834547,-430.0,0.00020896,2]
[362813062,1748467834556,-831.06,0.00020896,2]
[362813063,1748467834565,-430.0,0.00020896,2]
[362813064,1748467834574,-430.0,0.00020898,2]
[362813065,1748467834583,-420.0,0.00020898,2]
[362813066,1748467834592,-2132.23459096,0.000209,4]
[362813067,1748467834602,-155.49780129,0.00020932,2]
[362813068,1748467834615,-621.01816871,0.00020938,2]
[362813069,1748467834624,-155.49780129,0.00020959,2]
[362813070,1748467834633,-155.49780129,0.00020959,2]
[362813071,1748467834642,-160.0,0.00020973,3]
[362813072,1748467834653,-12658.7678854,0.0002098,3]
[362813073,1748467834662,-842.5625,0.0002098,3]
[362813074,1748467834671,-314.74726623,0.0002098,3]
[362813075,1748467834680,-1000.0,0.00021,2]
[362813076,1748467834690,-500.0,0.00021,7]
[362813077,1748467834700,-500.0,0.00021,7]
[362813078,1748467834709,-500.0,0.00021,7]
[362813079,1748467834718,-500.0,0.00021,7]
[362813080,1748467834727,-500.0,0.00021,7]
[362813081,1748467834737,-500.0,0.00021,7]
[362813082,1748467834747,-500.0,0.00021,7]
[362813083,1748467834757,-500.0,0.00021,7]
[362813084,1748467834766,-500.0,0.00021,7]
[362813085,1748467834777,-500.0,0.00021,7]
[362813086,1748467834786,-500.0,0.00021,7]
[362813087,1748467834796,-500.0,0.00021,7]
[362813088,1748467834806,-500.0,0.00021,7]
[362813089,1748467834825,-500.0,0.00021,7]
[362813090,1748467834835,-591.9,0.00021,7]
[362813091,1748467834844,-2132.23459075,0.00021038,4]
[362813092,1748467834854,-405.0,0.00021038,2]
[362813093,1748467834863,-600.0,0.0002112,2]
[362813094,1748467834872,-500.0,0.00021127,2]
[362813095,1748467834882,-498.15,0.00021146,3]
[362813096,1748467834891,-249.07,0.00021146,3]
[362813097,1748467834901,-747.24,0.00021146,3]
[362813098,1748467834910,-3985.2,0.00021156,3]
[362813099,1748467834920,-1992.6,0.00021156,3]
[362813100,1748467834930,-996.3,0.00021156,3]
[362813101,1748467834940,-5000.0,0.00021162,2]
[362813102,1748467834950,-430.0,0.00021165,2]
[362813103,1748467834959,-430.0,0.00021165,2]
[362813104,1748467834968,-921.12,0.00021165,2]
[362813105,1748467835110,-328.18,0.00021165,2]
[362813106,1748467835120,-450.94,0.00021165,2]
[362813107,1748467835130,-557.59,0.00021165,2]
[362813108,1748467835140,-713.34,0.00021165,2]
[362813109,1748467835150,-7970.39,0.00021166,3]
[362813110,1748467835160,-430.0,0.00021167,2]
[362813111,1748467835169,-1013.68,0.00021167,2]
[362813112,1748467835181,-430.0,0.0002117,2]
[362813113,1748467835190,-456.24677465,0.0002117,2]
[362813114,1748467835200,-213.00965002,0.0002117,2]
[362813115,1748467835210,-831.06,0.0002117,2]
[362813116,1748467835220,-430.0,0.0002117,2]
[362813117,1748467835229,-285.0,0.00021172,2]
[362813118,1748467835240,-2132.23459075,0.00021176,4]
[362813119,1748467835250,-155.49780129,0.00021205,2]
[362813120,1748467835260,-160.49780129,0.00021233,2]
[362813121,1748467835269,-155.49780129,0.00021233,2]
[362813122,1748467835279,-155.49780129,0.00021233,2]
[362813123,1748467835288,-155.49780129,0.00021233,2]
[362813124,1748467835298,-151.0,0.000213,3]
[362813125,1748467835308,-2132.23459075,0.00021314,5]
[362813126,1748467835318,-600.0,0.0002134,2]
[362813127,1748467835327,-800.0,0.00021369,2]
[362813128,1748467835337,-151.0,0.000214,4]
[362813129,1748467835347,-621.01816871,0.00021419,2]
[362813130,1748467835357,-430.0,0.00021439,2]
[362813131,1748467835367,-430.0,0.00021439,2]
[362813132,1748467835376,-921.12,0.00021439,2]
[362813133,1748467835386,-450.94,0.00021439,2]
[362813134,1748467835398,-557.59,0.00021439,2]
[362813135,1748467835407,-713.34,0.00021439,2]
[362813136,1748467835416,-430.0,0.00021441,2]
[362813137,1748467835424,-1013.68,0.00021441,2]
[362813138,1748467835433,-430.0,0.00021444,2]
[362813139,1748467835442,-831.06,0.00021444,2]
[362813140,1748467835450,-430.0,0.00021444,2]
[362813141,1748467835459,-160.0,0.00021444,4]
[362813142,1748467835468,-2132.23459075,0.00021452,5]
[362813143,1748467835477,-153.0,0.00021482,2]
[362813144,1748467835487,-264.3466021,0.00021482,2]
[362813145,1748467835495,-153.0,0.00021482,2]
[362813146,1748467835504,-153.0,0.00021482,2]
[362813147,1748467835512,-153.0,0.00021482,2]
[362813148,1748467835521,-151.0,0.000215,3]
[362813149,1748467835529,-1000.0,0.000215,2]
[362813150,1748467835539,-155.49780129,0.00021507,2]
[362813151,1748467835548,-155.49780129,0.00021507,2]
[362813152,1748467835558,-185.6130573,0.00021525,2]
[362813153,1748467835567,-163.878772,0.0002156,3]
[362813154,1748467835577,-600.0,0.0002156,2]
[362813155,1748467835586,-2132.23459075,0.0002159,5]
[362813156,1748467835595,-151.0,0.000216,4]
[362813157,1748467835609,-4114.43,0.00021618,2]
[362813158,1748467835618,-151.0,0.000217,3]
[362813159,1748467835628,-151.0,0.000217,3]
[362813160,1748467835636,-636.0,0.000217,2]
[362813161,1748467835646,-430.0,0.00021713,2]
[362813162,1748467835654,-430.0,0.00021713,2]
[362813163,1748467835662,-921.12,0.00021713,2]
[362813164,1748467835672,-450.94,0.00021713,2]
[362813165,1748467835681,-557.59,0.00021713,2]
[362813166,1748467835690,-548.94238629,0.00021713,2]
[362813189,1748467838663,-294.78529435,0.00019521,2]
[362813190,1748467838676,-135.21470565,0.00019521,2]
[362813191,1748467838686,-430.0,0.00019795,2]
[362813192,1748467838695,-430.0,0.00020069,2]
[362813193,1748467838704,-430.0,0.00020343,2]
[362813194,1748467838712,-597.34,0.00020881,10]
[362813195,1748467838721,-959.0,0.00021038,2]
[362813196,1748467838730,-48.16939692,0.00021713,2]
[362813197,1748467838741,-116.22821679,0.00021713,2]
[362813198,1748467838751,-1013.68,0.00021715,2]
[362813199,1748467838759,-430.0,0.00021718,2]
[362813200,1748467838768,-831.06,0.00021718,2]
[362813201,1748467838777,-430.0,0.00021718,2]
[362813203,1748467838786,-151.0,0.00021726,2]
[362813205,1748467838795,-153.0,0.00021726,2]
[362813207,1748467838804,-153.0,0.00021726,2]
[362813209,1748467838813,-153.0,0.00021726,2]
[362813211,1748467838822,-153.0,0.00021726,2]
[362813213,1748467838831,-800.0,0.00021727,2]
[362813215,1748467838840,-2132.23459075,0.00021728,5]
[362813217,1748467838849,-800.0,0.00021729,2]
[362813219,1748467838858,-800.0,0.00021759,2]
[362813221,1748467838868,-1792.80609202,0.0002178,2]
[362813453,1748467840857,-469.84300832,0.00018423,2]
[362813455,1748467840871,-30.15699168,0.00018423,2]
[362813457,1748467840883,-351.49300832,0.00018423,2]
[362813462,1748467840914,-148.50699168,0.00018423,2]
[362813464,1748467840925,-500.0,0.00018423,2]
[362813466,1748467840935,-185.89745188,0.00018423,2]
[362813827,1748467844501,-163.47736878,0.00018423,2]
[362813829,1748467844513,-500.0,0.00018423,2]
[362813832,1748467844525,-500.0,0.00018423,2]
[362813834,1748467844537,-501.83926338,0.00018423,2]
[362813836,1748467844549,-525.77416722,0.00018423,2]
[362813838,1748467844559,-500.0,0.00018423,2]
[362813840,1748467844568,-425.80520199,0.00018423,2]
[362813845,1748467844621,-74.19479801,0.00018423,2]
[362813847,1748467844632,-500.0,0.00018423,2]
[362813849,1748467844643,-500.0,0.00018423,2]
[362813851,1748467844655,-189.10218697,0.00018423,2]
[362813853,1748467844667,-500.0,0.00018423,2]
[362813855,1748467844679,-500.0,0.00018423,2]
[362813857,1748467844691,-500.0,0.00018423,2]
[362813859,1748467844702,-208.22060293,0.00018423,2]
[362813861,1748467844712,-500.0,0.00018423,2]
[362813864,1748467844723,-500.0,0.00018423,2]
[362813866,1748467844733,-500.0,0.00018423,2]
[362813868,1748467844744,-453.28240601,0.00018423,2]
[362814036,1748467846707,-46.71759399,0.00018423,2]
[362814038,1748467846718,-430.0,0.00019523,2]
[362814040,1748467846729,-500.0,0.00019653,2]
[362814042,1748467846740,-530.12520317,0.00019653,2]
[362814044,1748467846751,-500.0,0.00019653,2]
[362814046,1748467846762,-500.0,0.00019653,2]
[362814048,1748467846773,-430.0,0.00019797,2]
[362814051,1748467846784,-430.0,0.00020071,2]
[362814053,1748467846794,-430.0,0.00020345,2]
[362814055,1748467846804,-430.0,0.00020617,2]
[362814057,1748467846815,-430.0,0.00020619,2]
[362814059,1748467846827,-430.0,0.00020891,2]
[362814061,1748467846837,-430.0,0.00020893,2]
[362814063,1748467846848,-430.0,0.00021165,2]
[362814065,1748467846858,-331.67,0.00021439,2]
[362814067,1748467846868,-1102.904728,0.000215,2]
[362814069,1748467846879,-300.0,0.00021725,2]
[362814071,1748467846889,-56332.34230842,0.0002178,2]
[362814073,1748467846900,-1148.71043039,0.0002178,2]
[362814075,1748467846911,-151.0,0.000218,3]
[362814078,1748467846922,-151.0,0.000218,3]
[362814080,1748467846933,-800.0,0.00021811,2]
[362814082,1748467846944,-800.0,0.0002184,2]
[362814084,1748467846955,-2132.23459075,0.00021866,6]
[362814086,1748467846965,-800.0,0.0002187,2]
[362814088,1748467846975,-800.0,0.00021875,2]
[362814090,1748467846986,-800.0,0.00021899,2]
[362814092,1748467846996,-2446.53,0.000219,2]
[362814094,1748467847007,-151.0,0.000219,3]
[362814096,1748467847017,-165.78476889,0.000219,2]
[362814099,1748467847028,-151.0,0.000219,4]
[362814101,1748467847039,-621.01816871,0.000219,2]
[362814103,1748467847051,-11401.60565524,0.000219,2]
[362814105,1748467847062,-151.0,0.00021903,2]
[362814107,1748467847072,-497.79,0.00021907,10]
[362814109,1748467847083,-587.0,0.00021914,2]
[362814112,1748467847096,-160.0,0.00021916,5]
[362814114,1748467847107,-200.0,0.00021917,2]
[362814116,1748467847116,-500.0,0.00021917,2]
[362814118,1748467847126,-500.0,0.00021917,2]
[362814120,1748467847135,-500.0,0.00021917,2]
[362814121,1748467847144,-500.0,0.00021917,2]
[362814123,1748467847154,-500.0,0.00021917,2]
[362814125,1748467847163,-500.0,0.00021917,2]
[362814127,1748467847173,-500.0,0.00021917,2]
[362814129,1748467847183,-500.0,0.00021917,2]
[362814131,1748467847192,-500.0,0.00021917,2]
[362814133,1748467847202,-357.92815643,0.00021917,2]
[362814135,1748467847211,-500.0,0.00021917,2]
[362814151,1748467847357,-500.0,0.00021917,2]
[362814154,1748467847373,-500.0,0.00021917,2]
[362814156,1748467847384,-500.0,0.00021917,2]
[362814158,1748467847394,-500.0,0.00021917,2]
[362814160,1748467847404,-605.8619639,0.00021917,2]
[362814162,1748467847414,-500.0,0.00021917,2]
[362814164,1748467847423,-428.5211245,0.00021917,2]
[362814166,1748467847433,-156.6394568,0.00021918,2]
[362814168,1748467847442,-159.187815,0.0002195,14]
[362814170,1748467847451,-324.32824355,0.00021965,2]
[362814172,1748467847460,-500.0,0.00021973,2]
[362814174,1748467847470,-500.0,0.00021973,2]
[362814175,1748467847479,-500.57655883,0.00021973,2]
[362814177,1748467847489,-500.0,0.00021973,2]
[362814179,1748467847498,-500.0,0.00021973,2]
[362814182,1748467847508,-500.0,0.00021973,2]
[362814184,1748467847517,-561.80109613,0.00021973,2]
[362814185,1748467847527,-500.0,0.00021973,2]
[362814188,1748467847536,-500.0,0.00021973,2]
[362814189,1748467847546,-501.37879744,0.00021973,2]
[362814191,1748467847556,-500.0,0.00021973,2]
[362814194,1748467847565,-600.0,0.00021973,2]
[362814196,1748467847575,-500.0,0.00021973,2]
[362814197,1748467847584,-500.0,0.00021973,2]
[362814199,1748467847593,-500.0,0.00021973,2]
[362814201,1748467847603,-500.0,0.00021973,2]
[362814203,1748467847615,-500.0,0.00021973,2]
[362814205,1748467847624,-500.0,0.00021973,2]
[362814207,1748467847633,-500.0,0.00021973,2]
[362814209,1748467847643,-500.0,0.00021973,2]
[362814211,1748467847653,-800.0,0.00021977,2]
[362814213,1748467847663,-1332.48258,0.0002198,5]
[362814215,1748467847672,-511.05428537,0.00021987,2]
[362814217,1748467847682,-430.0,0.00021987,2]
[362814219,1748467847691,-921.12,0.00021987,2]
[362814221,1748467847701,-450.94,0.00021987,2]
[362814223,1748467847711,-557.59,0.00021987,2]
[362814225,1748467847720,-713.34,0.00021987,2]
[362814227,1748467847730,-1013.68,0.00021989,2]
[362814229,1748467847739,-831.06,0.00021992,2]
[362814231,1748467847748,-430.0,0.00021992,2]
[362814233,1748467847757,-240.0,0.00021999,2]
[362814235,1748467847767,-42218.99783868,0.00022,2]
[362814237,1748467847777,-10912.51629803,0.00022,3]
[362814239,1748467847786,-4091.37216796,0.00022,2]
[362814241,1748467847795,-432155.70459847,0.00022,2]
[362814961,1748468142337,288.27771657,0.00024658,120]
[362814962,1748468508920,161.250607,0.00013699,2]
[362814992,1748469031774,-162.6511831,0.00016913,2]
[362814994,1748469031783,-265.67849848,0.00017436,2]
[362814997,1748469031836,-4734.32150152,0.00017436,2]
[362814998,1748469031846,-300.0,0.0001831,2]
[362814999,1748469031855,-300.0,0.00018311,2]
[362815000,1748469031864,-300.0,0.00018311,2]
[362815001,1748469031873,-1200.0,0.00018311,2]
[362815002,1748469031882,-8257.2772648,0.00018312,2]
[362815003,1748469031892,-3249.63722049,0.000189,2]
[362815004,1748469031902,-152.0,0.00019094,2]
[362815005,1748469031911,-3249.63722029,0.00019107,2]
[362815006,1748469031920,-389.09325149,0.00019174,2]
[362815007,1748469031930,-356.46895588,0.00019174,2]
[362815008,1748469031939,-14953.76349316,0.00019175,2]
[362815009,1748469031948,-800.0,0.00019177,2]
[362815010,1748469031958,-430.0,0.00019178,2]
[362815011,1748469031967,-430.0,0.00019178,2]
[362815012,1748469031976,-430.0,0.00019178,2]
[362815013,1748469031986,-430.0,0.00019178,2]
[362815014,1748469031995,-430.0,0.00019178,2]
[362815015,1748469032009,-807.76,0.00019178,2]
[362815016,1748469032018,-430.0,0.00019178,2]
[362815017,1748469032028,-430.0,0.00019178,2]
[362815018,1748469032039,-430.0,0.00019178,2]
[362815019,1748469032048,-430.0,0.00019178,2]
[362815020,1748469032057,-430.0,0.00019178,2]
[362815021,1748469032067,-430.0,0.00019178,2]
[362815023,1748469032077,-430.0,0.00019178,2]
[362815024,1748469032086,-430.0,0.00019178,2]
[362815025,1748469032096,-430.0,0.00019178,2]
[362815026,1748469032106,-430.0,0.00019178,2]
[362815027,1748469032117,-430.0,0.00019178,2]
[362815028,1748469032126,-430.0,0.00019178,2]
[362815029,1748469032136,-430.0,0.00019178,2]
[362815030,1748469032145,-430.0,0.00019178,2]
[362815031,1748469032154,-430.0,0.00019178,2]
[362815032,1748469032163,-349.48523347,0.00019178,2]
[362815033,1748469032173,-315.07,0.00019178,2]
[362815034,1748469032182,-430.0,0.00019178,2]
[362815035,1748469032191,-430.0,0.00019178,2]
[362815036,1748469032201,-430.0,0.00019178,2]
[362815037,1748469032210,-430.0,0.00019178,2]
[362815038,1748469032219,-430.0,0.00019178,2]
[362815039,1748469032229,-430.0,0.00019178,2]
[362815040,1748469032249,-430.0,0.00019178,2]
[362815041,1748469032263,-430.0,0.00019178,2]
[362815042,1748469032273,-430.0,0.00019178,2]
[362815043,1748469032283,-430.0,0.00019178,2]
[362815044,1748469032292,-430.0,0.00019178,2]
[362815045,1748469032301,-430.0,0.00019178,2]
[362815046,1748469032311,-430.0,0.00019178,2]
[362815047,1748469032321,-430.0,0.00019178,2]
[362815048,1748469032331,-430.0,0.00019178,2]
[362815049,1748469032340,-430.0,0.00019178,2]
[362815050,1748469032350,-430.0,0.00019178,2]
[362815051,1748469032359,-430.0,0.00019178,2]
[362815052,1748469032368,-1283.83,0.00019178,2]
[362815053,1748469032378,-430.0,0.00019178,2]
[362815054,1748469032387,-461.7281109,0.00019178,2]
[362815055,1748469032396,-1160.66,0.00019178,2]
[362815056,1748469032406,-430.0,0.00019178,2]
[362815057,1748469032416,-430.0,0.00019178,2]
[362815058,1748469032425,-430.0,0.00019178,2]
[362815059,1748469032435,-430.0,0.00019178,2]
[362815060,1748469032445,-430.0,0.00019178,2]
[362815061,1748469032454,-430.0,0.00019178,2]
[362815062,1748469032463,-430.0,0.00019178,2]
[362815063,1748469032474,-230.0,0.00019178,2]
[362815064,1748469032483,-510.63,0.00019178,2]
[362815065,1748469032493,-430.0,0.00019178,2]
[362815066,1748469032502,-170.0,0.00019178,2]
[362815067,1748469032514,-489.58,0.00019178,2]
[362815068,1748469032525,-430.0,0.00019178,2]
[362815069,1748469032535,-430.0,0.00019178,2]
[362815070,1748469032544,-430.0,0.00019178,2]
[362815071,1748469032555,-430.0,0.00019178,2]
[362815072,1748469032564,-684.06,0.00019178,2]
[362815073,1748469032573,-1342.53,0.00019178,2]
[362815074,1748469032584,-151.0,0.00019178,2]
[362815075,1748469032593,-224.861375,0.00019178,2]
[362815076,1748469032603,-500.0,0.00019181,2]
[362815077,1748469032613,-207.4,0.00019181,2]
[362815078,1748469032624,-5000.0,0.00019181,2]
[362815079,1748469032634,-156.587,0.00019233,2]
[362815080,1748469032646,-162.380719,0.00019288,2]
[362815081,1748469032656,-3249.63722029,0.00019314,2]
[362815082,1748469032665,-151.92719648,0.00019343,2]
[362815083,1748469032675,-151.32294275,0.00019343,2]
[362815084,1748469032684,-158.60730553,0.00019343,2]
[362815085,1748469032694,-288.06439291,0.00019343,2]
[362815086,1748469032703,-168.3888056,0.00019343,2]
[362815087,1748469032712,-8886.99243047,0.00019352,2]
[362815088,1748469032722,-174.61919141,0.00019398,2]
[362815089,1748469032731,-500.0,0.00019418,2]
[362815090,1748469032741,-500.0,0.00019418,2]
[362815091,1748469032750,-500.0,0.00019418,2]
[362815092,1748469032760,-500.0,0.00019418,2]
[362815093,1748469032769,-212.05055639,0.00019418,2]
[362815094,1748469032779,-361.51833308,0.00019418,2]
[362815095,1748469032788,-500.0,0.00019418,2]
[362815096,1748469032797,-500.0,0.00019418,2]
[362815097,1748469032807,-561.02450328,0.00019418,2]
[362815098,1748469032817,-500.0,0.00019418,2]
[362815099,1748469032827,-500.0,0.00019418,2]
[362815100,1748469032836,-500.0,0.00019418,2]
[362815101,1748469032846,-500.0,0.00019418,2]
[362815102,1748469032855,-500.0,0.00019418,2]
[362815103,1748469032865,-528.6368927,0.00019418,2]
[362815104,1748469032874,-500.0,0.00019418,2]
[362815105,1748469032884,-500.0,0.00019418,2]
[362815106,1748469032894,-500.0,0.00019418,2]
[362815107,1748469032903,-500.0,0.00019418,2]
[362815108,1748469032913,-500.0,0.00019418,2]
[362815109,1748469032922,-250.0,0.00019418,2]
[362815110,1748469032931,-425.81570145,0.00019452,2]
[362815111,1748469032940,-430.0,0.00019452,2]
[362815112,1748469032949,-430.0,0.00019452,2]
[362815113,1748469032959,-430.0,0.00019452,2]
[362815114,1748469032968,-430.0,0.00019452,2]
[362815115,1748469032978,-807.76,0.00019452,2]
[362815116,1748469032988,-430.0,0.00019452,2]
[362815117,1748469032997,-430.0,0.00019452,2]
[362815118,1748469033011,-430.0,0.00019452,2]
[362815119,1748469033020,-430.0,0.00019452,2]
[362815120,1748469033029,-430.0,0.00019452,2]
[362815121,1748469033038,-430.0,0.00019452,2]
[362815122,1748469033049,-430.0,0.00019452,2]
[362815123,1748469033059,-430.0,0.00019452,2]
[362815124,1748469033070,-430.0,0.00019452,2]